bitfinex/quotes_ETHUSD_20250331
["timestamp","ask_amount","ask_price","bid_price","bid_amount"]
[1743429033510,0.1,1811.9,1811.8,0.19035981]
[1743429034222,3.1,1811.9,1811.5,5.5202]
[1743429034433,3.1,1811.9,1811.6,5.574913]
[1743429034434,0.1,1811.9,1811.6,5.574913]
[1743429034626,0.1,1811.9,1811.7,5.51957]
[1743429034938,0.1,1811.9,1811.8,0.18983904]
[1743429034939,5.61908,1811.9,1811.8,0.18983904]
[1743429035103,8.55603251,1811.9,1810.9,1.5322]
[1743429035309,8.55603251,1811.9,1811.1,5.52134]
[1743429035310,3.0,1811.6,1811.1,5.52134]
[1743429035509,3.0,1811.6,1811.2,0.1909226]
[1743429035741,3.0,1811.6,1811.2,5.7119226]
[1743429036038,3.0,1811.6,1811.3,0.19074195]
[1743429036233,0.1,1811.9,1811.8,5.51937]
[1743429036433,0.1,1811.9,1811.8,7.12534985]
[1743429036735,0.1,1811.9,1811.8,7.31608169]
[1743429036957,0.1,1811.9,1811.8,0.19073184]
[1743429037260,8.59863251,1811.9,1811.8,0.19073184]
[1743429037542,3.0,1811.8,1811.1,1.5957]
[1743429037712,8.52009,1811.6,1811.2,0.17583701]
[1743429037910,6.86333251,1811.6,1811.2,5.69692701]
[1743429038109,12.38335251,1811.6,1811.2,0.17583701]
[1743429038325,3.0,1811.6,1811.2,5.69691701]
[1743429038519,3.0,1811.6,1811.2,0.17583701]
[1743429038724,3.0,1811.6,1811.3,5.52062]
[1743429038919,3.0,1811.6,1811.2,0.17583701]
[1743429039120,3.79088615,1811.6,1811.2,0.17583701]
[1743429039437,3.0,1811.7,1811.2,5.52116]
[1743429039638,9.798,1811.7,1811.3,5.52067]
[1743429039937,9.798,1811.7,1811.3,5.52085]
[1743429040244,9.798,1811.7,1811.2,5.52118]
[1743429040245,15.31786,1811.7,1811.2,5.52118]
[1743429040542,9.798,1811.7,1811.3,5.52088]
[1743429040840,9.798,1811.7,1811.2,5.52119]
[1743429041012,17.40082325,1811.7,1811.2,5.52119]
[1743429041211,17.40082325,1811.7,1811.2,11.04222]
[1743429041441,17.40082325,1811.7,1811.1,7.18298]
[1743429041442,3.0,1811.5,1811.1,7.18298]
[1743429041630,3.0,1811.6,1811.2,5.52116]
[1743429042546,3.0,1811.6,1811.2,5.52108]
[1743429042730,1.6507,1811.8,1811.5,5.52028]
[1743429042930,33.22896534,1811.9,1811.5,5.52022]
[1743429043115,6.89603534,1811.9,1811.6,0.17716121]
[1743429043310,1.37696534,1811.9,1811.3,5.52088]
[1743429043517,5.51961,1811.8,1811.4,0.17752239]
[1743429043712,5.52051,1811.5,1811.0,7.15637]
[1743429043917,3.0,1811.4,1811.1,0.2238334]
[1743429044143,3.0,1811.5,1811.1,0.16862209]
[1743429044324,3.0,1811.6,1811.2,0.05520292]
[1743429044519,3.0,1811.6,1811.3,0.15399509]
[1743429044723,8.52022,1811.6,1811.0,7.15632]
[1743429044930,8.51982,1811.7,1811.1,6.3914684]
[1743429045131,0.89088615,1811.9,1811.4,5.52033]
[1743429045331,5.51949,1811.8,1811.5,0.15363387]
[1743429045530,8.51998,1811.6,1811.5,0.15363387]
[1743429045735,8.51998,1811.6,1811.2,1.6481]
[1743429045954,3.0,1811.6,1811.3,0.20919587]
[1743429046147,8.51993,1811.7,1811.3,0.15399509]
[1743429046349,3.0,1811.4,1811.3,0.15399509]
[1743429046517,3.0,1811.4,1811.0,5.52178]
[1743429046849,8.5207,1811.4,1811.1,0.1543564]
[1743429047216,3.0,1811.1,1810.9,1.5699]
[1743429047420,3.0,1811.0,1810.6,1.5355]
[1743429047652,3.0,1811.3,1810.7,0.05521672]
[1743429047832,3.0,1811.3,1810.9,5.52193]
[1743429048149,3.0,1811.3,1811.0,0.6074027]
[1743429048323,3.0,1811.1,1810.7,5.52269]
[1743429048649,3.0,1811.1,1810.6,7.05839]
[1743429048823,3.0,1811.1,1810.7,11.10046506]
[1743429049024,3.0,1811.1,1810.7,5.52255]
[1743429049347,3.0,1811.1,1810.7,12.35841006]
[1743429049547,3.0,1811.4,1810.9,5.52187]
[1743429049747,3.0,1811.4,1811.0,1.68510577]
[1743429049955,9.12210132,1811.7,1811.2,5.52096]
[1743429050250,9.12210132,1811.7,1811.2,5.52113]
[1743429050251,3.0,1811.6,1811.2,5.52113]
[1743429050425,3.0,1811.6,1811.2,1.104247]
[1743429050630,8.52018,1811.6,1811.3,0.05520297]
[1743429050833,3.0,1811.6,1811.4,5.52057]
[1743429051151,3.0,1811.6,1811.3,5.52084]
[1743429051353,3.0,1811.6,1811.3,5.57591923]
[1743429051525,3.0,1811.6,1811.3,1.22013362]
[1743429052047,3.0,1811.6,1811.4,0.05519924]
[1743429052368,3.0,1811.6,1811.0,7.1517]
[1743429052369,3.0,1811.6,1811.1,6.0715]
[1743429052535,8.9252912,1811.8,1811.3,5.52079]
[1743429052726,8.9252912,1811.8,1811.4,0.05519792]
[1743429052727,3.0,1811.6,1811.4,0.05519792]
[1743429053055,3.70238132,1811.9,1811.4,7.10437792]
[1743429053222,3.0,1811.8,1811.4,13.33522571]
[1743429053423,0.1,1811.9,1811.8,5.51937]
[1743429053662,0.1,1811.9,1811.8,7.1432528]
[1743429054139,3.60238132,1813.0,1812.7,5.51636]
[1743429054342,0.26967309,1813.5,1813.3,5.51465]
[1743429054618,0.79088615,1813.7,1813.3,5.51475]
[1743429054619,0.42322583,1813.7,1813.3,5.51475]
[1743429054830,3.60238132,1813.6,1813.3,5.51475]
[1743429055064,3.60238132,1813.6,1813.2,11.08505975]
[1743429055247,5.15548132,1813.8,1813.2,0.05513975]
[1743429055441,1.6051,1813.6,1813.0,7.2235397]
[1743429055636,3.0,1813.4,1813.0,7.1684]
[1743429055975,12.63344,1813.6,1813.1,0.05514549]
[1743429056129,0.51554813,1813.7,1813.2,5.51484]
[1743429056331,5.51374,1813.7,1813.1,5.5154]
[1743429056531,9.36369856,1813.8,1813.2,5.51498]
[1743429056753,7.06619,1813.9,1813.3,5.51478]
[1743429057067,5.51238,1814.1,1813.5,7.13664]
[1743429057280,37.36431,1814.8,1814.0,5.51238]
[1743429057281,5.51099,1814.6,1814.0,5.51238]
[1743429057431,3.85040856,1815.0,1814.2,5.51193]
[1743429057625,5.51052,1814.8,1814.2,5.51193]
[1743429057960,5.51052,1814.8,1814.0,6.118728]
[1743429057961,5.50988,1815.0,1814.5,5.51113]
[1743429058171,0.01503674,1815.3,1814.6,0.05510218]
[1743429058333,5.50961,1815.1,1814.6,0.05510218]
[1743429058534,4.11690585,1815.1,1814.3,1.6186]
[1743429058749,0.6895149,1815.0,1814.4,5.56639444]
[1743429058956,8.6925,1815.2,1814.3,7.13032]
[1743429059231,5.51053,1814.8,1814.3,1.6186]
[1743429059531,3.0,1814.5,1814.0,7.723298]
[1743429059735,3.0,1814.5,1814.0,7.11706]
[1743429060429,3.0,1814.3,1813.8,5.513]
[1743429060628,3.0,1814.3,1813.8,11.02615]
[1743429060834,3.0,1814.2,1813.7,1.6083]
[1743429061035,9.363502,1814.2,1813.7,1.6083]
[1743429061560,0.851202,1814.2,1813.8,0.055124]
[1743429061762,3.0,1814.1,1813.7,1.6083]
[1743429061932,3.0,1814.2,1813.7,7.12174]
[1743429062282,3.0,1814.5,1814.0,5.51249]
[1743429062453,8.51141,1814.5,1813.9,5.51294]
[1743429062654,5.51163,1814.4,1813.8,5.51305]
[1743429063049,7.034341,1814.5,1813.9,5.56800945]
[1743429063255,7.034341,1814.5,1813.8,5.51323]
[1743429063256,5.51159,1814.4,1813.8,5.51323]
[1743429063453,12.545501,1814.5,1814.0,5.51264]
[1743429063656,12.545501,1814.5,1813.7,7.12172]
[1743429063657,10.88474956,1814.5,1813.7,7.12172]
[1743429063858,3.0,1814.2,1813.7,12.63514]
[1743429064074,3.0,1814.2,1813.7,7.12172]
[1743429064663,5.51264,1814.1,1813.7,1.6083]
[1743429064862,5.51264,1814.1,1812.6,5.51668]
[1743429064863,8.5128,1814.0,1813.4,5.51436]
[1743429065204,8.51331,1813.8,1813.3,1.6665]
[1743429065406,0.851331,1813.7,1813.0,1.5364]
[1743429065555,3.0,1813.6,1813.1,5.51528]
[1743429065750,3.0,1813.6,1813.1,5.5152]
[1743429065956,3.0,1813.5,1813.0,7.052]
[1743429066202,8.5142,1813.5,1813.0,7.052]
[1743429066374,8.5142,1813.5,1813.0,7.05208]
[1743429066557,8.51391,1813.6,1813.1,0.05514329]
[1743429066751,8.51391,1813.6,1813.0,13.824339]
[1743429066968,5.51476,1813.4,1813.0,1.5364]
[1743429067167,3.0,1813.3,1812.9,0.05514799]
[1743429067394,3.0,1813.3,1812.9,5.57107799]
[1743429067591,3.0,1813.3,1812.9,5.57115799]
[1743429067793,3.0,1813.3,1812.9,5.51601]
[1743429067957,3.0,1813.0,1812.7,1.5438]
[1743429068154,3.0,1813.0,1812.8,0.05515717]
[1743429068655,33.3737,1813.7,1813.1,5.51525]
[1743429069011,3.0,1813.6,1813.0,5.57065121]
[1743429069169,33.3737,1813.7,1813.1,5.51522]
[1743429069368,8.51401,1813.6,1813.0,5.51571]
[1743429069682,1.5015,1814.0,1813.1,0.05514222]
[1743429069854,7.01356,1814.3,1813.7,5.51358]
[1743429070205,7.42257734,1814.3,1813.7,5.51352]
[1743429070499,1.91079734,1814.3,1813.8,5.56840425]
[1743429070660,1.5015,1814.3,1813.9,5.51297]
[1743429070860,38.87535,1814.6,1814.0,5.5125]
[1743429071073,38.87535,1814.6,1813.8,6.07011043]
[1743429071074,5.51189,1814.3,1813.8,6.07011043]
[1743429071290,5.51189,1814.3,1813.8,11.02637]
[1743429071607,37.3291,1814.6,1814.0,5.51247]
[1743429071759,8.51116,1814.5,1813.9,1.5353]
[1743429071952,3.0,1814.2,1813.8,5.51323]
[1743429072202,12.59833,1814.5,1814.0,5.51267]
[1743429072358,7.087,1814.5,1814.1,5.51221]
[1743429072558,12.59842,1814.5,1814.0,5.51267]
[1743429072759,3.0,1814.3,1813.8,5.51328]
[1743429072984,3.0,1814.3,1813.9,5.51296]
[1743429073210,31.818,1814.6,1813.7,0.55]
[1743429073368,31.818,1814.6,1814.2,5.51184]
[1743429073558,3.0,1814.5,1814.1,1.6257]
[1743429073759,3.0,1814.5,1814.2,5.56700996]
[1743429073954,31.818,1814.6,1814.2,5.56696996]
[1743429074261,37.32914,1814.6,1814.1,5.51234]
[1743429074568,8.51116,1814.5,1814.0,5.51266]
[1743429074767,3.0,1814.5,1813.8,7.13891]
[1743429074962,3.0,1814.2,1813.8,1.6257]
[1743429075167,8.51222,1814.2,1813.6,5.51367]
[1743429075487,4.002642,1814.2,1813.7,5.51339]
[1743429075657,4.002642,1814.2,1813.5,1.5458]
[1743429075658,3.0,1814.2,1813.5,1.5458]
[1743429075863,3.0,1814.5,1814.1,1.6487]
[1743429076168,3.0,1814.5,1814.1,7.1609]
[1743429076574,31.818,1814.6,1814.3,5.51162]
[1743429076768,3.0,1814.5,1814.3,5.51162]
[1743429077461,3.0,1814.5,1814.2,5.51207]
[1743429077663,5.51146,1814.4,1813.9,5.51296]
[1743429077865,5.51146,1814.4,1814.0,0.0551164]
[1743429078595,3.0,1814.5,1814.1,5.51226]
[1743429078788,8.51117,1814.5,1814.0,5.51253]
[1743429078962,3.0,1814.5,1814.2,5.51196]
[1743429079175,1.6322,1815.3,1814.2,2.67814366]
[1743429079366,1.6322,1815.3,1814.6,5.51082]
[1743429079564,5.50951,1815.1,1814.6,5.51079]
[1743429079888,8.50904,1815.2,1814.7,5.51048]
[1743429080063,5.50946,1815.1,1814.4,0.55]
[1743429080264,11.01901,1815.1,1814.4,0.55]
[1743429080613,3.0,1815.1,1814.4,6.117421]
[1743429080894,3.0,1814.9,1814.6,5.51084]
[1743429081267,5.50967,1815.0,1814.4,5.51119]
[1743429081268,10.99133856,1815.3,1814.5,0.05510015]
[1743429081472,5.50904,1815.2,1814.7,5.51034]
[1743429081689,5.50904,1815.2,1814.4,0.55]
[1743429081876,8.50946,1815.1,1814.6,5.51081]
[1743429082075,4.6322,1815.3,1814.8,5.51008]
[1743429082271,10.14094,1815.3,1814.9,0.05509318]
[1743429082472,10.14094,1815.3,1814.7,1.5643]
[1743429082473,1.6322,1815.3,1814.7,1.5643]
[1743429082796,5.50788,1815.6,1815.0,5.50943]
[1743429083097,11.01583,1815.6,1815.1,5.56425621]
[1743429083281,8.50816,1815.5,1814.9,11.01966]
[1743429083473,5.50816,1815.5,1815.0,5.56464805]
[1743429083670,31.813,1815.7,1815.0,0.05508805]
[1743429083876,31.813,1815.7,1815.0,5.56462805]
[1743429084084,31.813,1815.7,1815.4,5.50839]
[1743429084280,31.813,1815.7,1815.3,11.01738]
[1743429084493,5.50632,1816.1,1815.4,1.101738]
[1743429084684,5.50632,1816.1,1815.5,5.56293475]
[1743429084884,5.50662,1816.0,1815.5,5.50787]
[1743429085087,5.50706,1815.9,1815.4,11.01665]
[1743429085265,3.0,1816.0,1815.5,5.56315076]
[1743429085465,7.43086138,1816.2,1815.5,0.05507076]
[1743429085698,1.5123,1816.2,1815.7,5.50725]
[1743429086024,3.0,1816.1,1815.7,5.50725]
[1743429086195,8.50673,1816.0,1815.5,5.50786]
[1743429086396,3.0,1816.0,1815.6,5.56280989]
[1743429086693,3.0,1816.0,1815.6,0.05506989]
[1743429086894,3.0,1816.3,1815.7,7.09909]
[1743429087106,3.0,1816.1,1815.8,0.05505926]
[1743429087393,5.50661,1816.0,1815.4,1.5858]
[1743429087571,3.0,1815.9,1815.4,7.0942]
[1743429087781,8.50701,1815.9,1815.4,7.0942]
[1743429088114,8.50756,1815.7,1815.2,5.50903]
[1743429088270,3.0,1815.7,1815.3,5.56363633]
[1743429088596,8.50752,1815.7,1815.1,7.09511]
[1743429088765,8.50752,1815.7,1815.1,7.09494]
[1743429088969,3.0,1815.5,1815.1,7.09507]
[1743429089286,8.50797,1815.6,1815.2,0.05508062]
[1743429089493,7.07303,1816.0,1815.2,6.27911068]
[1743429089800,1.5663,1816.0,1815.6,5.50755]
[1743429089997,4.5663,1816.0,1815.7,0.05506811]
[1743429090220,1.5663,1816.0,1815.4,5.50842]
[1743429090422,8.50732,1815.8,1815.3,5.50872]
[1743429090720,3.0,1815.7,1815.4,0.05507574]
[1743429090878,3.0,1815.8,1815.4,0.05507574]
[1743429091216,3.0,1815.8,1815.5,5.5081]
[1743429091378,3.0,1815.9,1815.5,5.5081]
[1743429091716,3.0,1815.9,1815.5,5.50799]
[1743429091915,3.0,1815.8,1815.5,5.50811]
[1743429092087,3.0,1815.9,1815.5,5.50811]
[1743429092326,1.5441,1816.4,1815.6,1.6118]
[1743429092504,1.5441,1816.4,1816.0,5.50631]
[1743429092703,3.0,1816.4,1815.9,5.5067]
[1743429092927,7.08623,1816.7,1816.2,5.50586]
[1743429093210,1.5816,1817.0,1816.7,5.50431]
[1743429093430,0.40380063,1817.1,1816.8,0.05503684]
[1743429093629,0.40380063,1817.1,1817.0,5.50357]
[1743429093841,3.85040856,1817.7,1816.9,0.1]
[1743429094047,1.7225,1818.1,1816.8,0.1]
[1743429094048,5.50388,1816.9,1816.8,0.1]
[1743429094210,3.85040856,1817.4,1816.4,0.1]
[1743429094211,8.50479,1816.6,1816.4,0.1]
[1743429094537,3.0,1816.6,1816.3,0.1]
[1743429094724,3.85040856,1817.1,1816.1,7.17099]
[1743429094725,3.0,1816.8,1816.4,0.15505089]
[1743429094926,3.0,1816.5,1816.4,0.1]
[1743429095128,8.4772,1816.6,1816.4,0.1]
[1743429095326,5.50452,1816.7,1816.6,0.1]
[1743429095731,3.85040856,1817.1,1816.5,12.55896]
[1743429095732,9.35382856,1817.1,1816.5,12.55896]
[1743429095907,5.50319,1817.2,1816.5,12.55896]
[1743429095908,0.41323464,1817.3,1816.8,0.1]
[1743429096108,5.50024,1818.1,1817.1,0.1]
[1743429096428,5.3532,1817.2,1817.1,0.2]
[1743429097420,3.0,1817.2,1817.1,0.2]
[1743429097859,8.50297,1817.2,1817.1,0.2]
[1743429098306,8.50297,1817.2,1817.1,0.1]
[1743429098510,3.0,1817.2,1817.1,0.1]
[1743429099214,5.50178,1817.6,1817.3,0.1]
[1743429099543,5.50198,1817.6,1817.4,0.1]
[1743429099708,6.15366,1817.7,1817.4,0.1]
[1743429099915,5.50193,1817.6,1817.4,0.1]
[1743429100110,3.0,1817.3,1817.2,0.1]
[1743429100419,5.50279,1817.3,1817.1,0.2]
[1743429100740,8.50297,1817.2,1817.1,0.2]
[1743429100921,8.50297,1817.2,1817.1,0.1]
[1743429101118,3.0,1817.2,1817.1,0.2]
[1743429101321,8.50297,1817.2,1817.1,0.1]
[1743429101716,10.555746,1817.2,1817.1,0.1]
[1743429102126,3.0,1817.2,1817.1,0.1]
[1743429102328,0.41293166,1817.2,1817.1,0.1]
[1743429102550,8.50297,1817.2,1817.1,0.1]
[1743429102847,3.0,1817.2,1817.1,0.1]
[1743429103148,3.0,1817.2,1817.1,0.2]
[1743429103343,5.50178,1817.6,1817.1,0.2]
[1743429103523,5.50206,1817.6,1817.3,0.1]
[1743429103719,8.50236,1817.4,1817.3,0.1]
[1743429103923,8.50236,1817.4,1817.1,0.2]
[1743429104125,5.50266,1817.3,1817.1,0.2]
[1743429104326,3.0,1817.3,1817.2,0.1]
[1743429105142,8.50266,1817.3,1817.2,0.1]
[1743429105726,8.50297,1817.2,1817.1,0.1]
[1743429106230,9.903533,1817.2,1817.1,0.1]
[1743429106633,8.50297,1817.2,1817.1,0.1]
[1743429106849,5.91629072,1817.5,1817.1,0.1]
[1743429106850,0.41413072,1817.5,1817.1,0.1]
[1743429107049,0.41413072,1817.5,1817.1,0.2]
[1743429107050,8.5023,1817.5,1817.1,0.2]
[1743429107252,11.65597,1817.6,1817.4,0.1]
[1743429107555,3.0,1817.5,1817.4,0.1]
[1743429107755,3.0,1817.5,1817.3,0.1]
[1743429107927,8.50216,1817.5,1817.4,0.1]
[1743429108122,3.0,1817.4,1817.3,0.1]
[1743429108347,11.00262,1817.8,1817.4,0.1]
[1743429108550,5.50177,1817.6,1817.4,0.1]
[1743429108719,3.0,1817.5,1817.4,0.1]
[1743429108921,3.0,1817.6,1817.4,0.1]
[1743429109125,8.50185,1817.6,1817.4,0.1]
[1743429109354,3.0,1817.7,1817.3,0.1]
[1743429109651,3.0,1817.4,1817.3,0.1]
[1743429109864,0.6522,1817.6,1817.3,0.1]
[1743429110041,3.0,1817.5,1817.3,0.1]
[1743429110524,8.50222,1817.5,1817.3,0.1]
[1743429110726,3.0,1817.5,1817.1,5.70301]
[1743429110949,3.0,1817.5,1817.3,0.1]
[1743429111335,8.50209,1817.5,1817.3,0.1]
[1743429111654,3.0,1817.3,1817.1,0.2]
[1743429111855,3.0,1817.4,1817.3,0.1]
[1743429112157,3.0,1817.7,1817.3,0.1]
[1743429112334,6.15315,1817.9,1817.6,0.1]
[1743429112530,3.0,1817.6,1817.5,0.1]
[1743429112726,3.0,1817.7,1817.5,0.1]
[1743429112929,5.50008,1818.2,1817.6,0.1]
[1743429113244,0.47916465,1819.0,1817.9,0.1]
[1743429113245,5.50029,1818.1,1817.9,0.1]
[1743429113425,5.50055,1818.0,1817.9,0.1]
[1743429113753,5.50115,1817.8,1817.6,0.1]
[1743429113954,5.50088,1817.9,1817.7,0.1]
[1743429114122,6.6411626,1818.0,1817.7,0.1]
[1743429114327,5.50055,1818.0,1817.9,0.1]
[1743429114722,5.50115,1817.8,1817.7,0.1]
[1743429114958,8.50115,1817.8,1817.7,0.1]
[1743429115146,3.0,1817.8,1817.7,0.1]
[1743429115347,8.50115,1817.8,1817.7,0.1]
[1743429115830,3.0,1817.8,1817.7,0.1]
[1743429116246,8.50115,1817.8,1817.7,0.1]
[1743429116629,3.0,1817.8,1817.7,0.1]
[1743429117827,5.50045,1818.1,1817.9,0.1]
[1743429118024,5.4995,1818.4,1818.0,0.1]
[1743429118349,5.4995,1818.4,1818.1,0.1]
[1743429118350,5.49974,1818.3,1818.1,0.1]
[1743429118529,5.49914,1818.5,1818.1,7.137]
[1743429118731,5.49941,1818.4,1818.2,0.1]
[1743429119057,0.549941,1818.4,1818.2,0.1]
[1743429119231,5.49884,1818.6,1818.3,0.1]
[1743429119426,12.3884363,1818.4,1818.2,0.15499982]
[1743429119657,5.49964,1818.3,1818.2,0.1]
[1743429120040,8.49964,1818.3,1818.2,0.1]
[1743429120355,8.49964,1818.3,1817.8,5.50098]
[1743429120356,3.0,1818.1,1818.0,0.1]
[1743429120777,3.0,1818.3,1818.2,0.1]
[1743429120961,8.49964,1818.3,1818.2,0.1]
[1743429121457,5.50055,1818.0,1817.8,0.1]
[1743429121634,3.0,1817.9,1817.8,0.1]
[1743429121837,3.0,1818.1,1817.8,0.1]
[1743429122026,5.49873,1818.6,1818.0,0.1]
[1743429122027,3.0,1818.2,1818.0,0.1]
[1743429122232,3.0,1818.3,1818.1,0.1]
[1743429122543,3.0,1818.3,1818.2,0.1]
[1743429122859,14.849396,1818.3,1818.2,0.1]
[1743429123060,9.349576,1818.3,1818.2,0.1]
[1743429123263,3.8889763,1818.6,1818.2,0.1]
[1743429123264,3.0,1818.5,1818.2,0.1]
[1743429123467,5.4969,1819.3,1818.2,0.15499963]
[1743429123634,5.49768,1819.0,1818.7,0.1]
[1743429123968,0.28119828,1819.7,1819.3,0.1]
[1743429124295,0.05,1819.9,1819.5,5.49582]
[1743429124448,0.05,1819.9,1819.7,0.1]
[1743429124938,0.05,1819.9,1819.8,0.1]
[1743429125539,0.05,1819.9,1819.8,7.0954]
[1743429125739,0.05,1819.9,1819.8,7.15033707]
[1743429125931,0.05,1819.9,1819.8,7.70033707]
[1743429126133,0.05,1819.9,1819.8,9.01990078]
[1743429126355,0.05,1819.9,1819.8,1.65523707]
[1743429126560,0.05,1819.9,1819.8,0.1]
[1743429126834,3.05,1819.9,1819.4,0.1]
[1743429127138,5.49592,1819.6,1819.5,0.1]
[1743429127338,3.0,1819.5,1819.4,0.1]
[1743429127538,3.0,1819.7,1819.4,0.1]
[1743429127851,5.54494,1819.9,1819.6,0.1]
[1743429127852,14.0399,1819.9,1819.6,0.1]
[1743429128056,1.40399,1819.8,1819.6,0.1]
[1743429128239,8.49537,1819.8,1819.7,0.1]
[1743429128430,8.49537,1819.8,1819.1,0.1]
[1743429128431,5.4956,1819.7,1819.1,0.1]
[1743429128638,5.49558,1819.7,1819.5,0.1]
[1743429128938,8.4953,1819.8,1819.5,0.1]
[1743429129342,8.4953,1819.8,1819.4,0.1]
[1743429129343,3.0,1819.8,1819.4,0.1]
[1743429129552,8.49601,1819.5,1819.4,0.1]
[1743429131152,8.49527,1819.8,1819.7,0.1]
[1743429131763,3.0,1819.8,1819.7,0.1]
[1743429132045,8.4951,1819.8,1819.7,0.1]
[1743429132449,3.0,1819.8,1819.7,0.1]
[1743429132649,8.4951,1819.8,1819.7,0.1]
[1743429133177,3.0,1819.8,1819.7,0.1]
[1743429133364,8.4951,1819.8,1819.7,0.1]
[1743429133608,5.49582,1819.6,1819.4,0.1]
[1743429133758,4.404001,1819.8,1819.7,0.1]
[1743429133956,8.4951,1819.8,1819.7,0.1]
[1743429134279,0.05,1819.9,1819.8,0.1]
[1743429134866,8.5448,1819.9,1819.7,0.1]
[1743429135066,5.4951,1819.8,1819.7,0.1]
[1743429135402,3.0,1819.8,1819.6,0.1]
[1743429135585,3.05,1819.9,1819.8,0.1]
[1743429135898,3.05,1819.9,1819.5,0.1]
[1743429135899,5.49559,1819.7,1819.5,0.1]
[1743429136065,3.0,1819.6,1819.5,0.1]
[1743429136280,8.49571,1819.6,1819.5,0.1]
[1743429136592,3.0,1819.5,1819.2,1.6522]
[1743429136762,3.0,1819.5,1819.4,0.1]
[1743429136963,5.49517,1819.8,1819.6,0.1]
[1743429137156,3.0,1819.7,1819.6,0.1]
[1743429137511,8.49541,1819.7,1819.5,0.1]
[1743429137659,8.49541,1819.7,1819.2,8.7022]
[1743429137660,8.49541,1819.7,1819.6,0.1]
[1743429137980,3.0,1819.8,1819.6,0.1]
[1743429138289,8.4953,1819.8,1819.7,0.1]
[1743429138656,3.0,1819.6,1819.5,0.1]
[1743429138876,2.9778,1819.6,1819.5,0.1]
[1743429139573,8.47351,1819.6,1819.5,0.1]
[1743429139772,5.49571,1819.6,1819.2,0.1]
[1743429139973,5.49722,1819.1,1819.0,0.1]
[1743429140283,5.49801,1818.9,1818.7,0.1]
[1743429140471,5.49771,1819.0,1818.9,0.1]
[1743429140672,5.49782,1818.9,1818.4,1.6449]
[1743429140982,3.0,1818.9,1818.1,7.14496]
[1743429141182,3.0,1818.5,1818.3,0.1]
[1743429141360,5.49934,1818.4,1818.3,0.1]
[1743429141568,5.49995,1818.2,1818.0,0.1]
[1743429141761,3.0,1818.2,1818.1,0.1]
[1743429141982,0.55,1819.0,1818.3,0.1]
[1743429141983,3.0,1818.5,1818.3,0.1]
[1743429142184,3.0,1818.8,1818.5,0.1]
[1743429142382,3.0,1818.8,1818.7,0.1]
[1743429142890,8.49843,1818.7,1818.6,0.1]
[1743429143184,8.49843,1818.7,1818.3,7.13696]
[1743429143185,3.0,1818.5,1818.4,0.1]
[1743429143382,8.49903,1818.5,1818.4,0.1]
[1743429143692,3.0,1818.5,1818.3,0.1]
[1743429143882,3.0,1818.5,1818.4,0.1]
[1743429144058,8.49903,1818.5,1818.4,0.1]
[1743429144260,5.49837,1818.8,1818.4,0.1]
[1743429144596,5.49837,1818.8,1818.6,0.1]
[1743429144597,3.0,1818.7,1818.6,0.1]
[1743429145387,3.0,1818.9,1818.8,0.1]
[1743429145562,5.49664,1819.3,1819.1,0.1]
[1743429145563,5.49683,1819.3,1819.1,0.1]
[1743429145891,3.0,1819.2,1819.1,0.1]
[1743429146108,3.0,1819.2,1818.7,5.49832]
[1743429146109,8.49722,1819.1,1819.0,0.1]
[1743429146294,5.49782,1818.9,1818.6,0.1]
[1743429146470,3.0,1818.7,1818.6,0.1]
[1743429146678,3.0,1818.6,1818.5,0.1]
[1743429146876,13.99766,1818.6,1818.5,0.1]
[1743429147075,13.99766,1818.6,1818.3,0.1]
[1743429147076,3.0,1818.4,1818.3,0.1]
[1743429147571,8.49865,1818.7,1818.6,0.1]
[1743429147777,8.49843,1818.7,1818.6,0.1]
[1743429148178,3.0,1818.7,1818.6,0.1]
[1743429148376,0.549683,1819.3,1819.0,0.1]
[1743429148377,5.49672,1819.3,1819.0,0.1]
[1743429148685,5.49662,1819.3,1819.2,0.1]
[1743429148886,5.49583,1819.6,1819.3,0.1]
[1743429149073,5.49601,1819.5,1819.4,0.1]
[1743429149275,8.49661,1819.3,1819.2,0.1]
[1743429149491,6.89593,1819.3,1819.2,0.1]
[1743429150097,8.49661,1819.3,1819.2,0.1]
[1743429150317,5.49681,1819.3,1819.2,0.1]
[1743429150475,8.49681,1819.3,1819.2,0.1]
[1743429150928,8.49661,1819.3,1819.2,0.1]
[1743429151070,9.3852963,1819.4,1819.1,0.1]
[1743429151271,5.49605,1819.5,1819.4,0.1]
[1743429151569,5.49571,1819.6,1819.4,0.1]
[1743429151772,10.99161,1819.6,1819.4,0.1]
[1743429151995,5.49516,1819.8,1819.6,0.1]
[1743429152372,10.99109,1819.7,1819.6,0.1]
[1743429152572,8.49541,1819.7,1819.6,0.1]
[1743429152798,8.49541,1819.7,1819.4,0.1]